fUSD/lending_fUSD_20240119
["ID","MTS","AMOUNT","RATE_DAILY","PERIOD"]
[312215528,1705689057976,-500.0,0.00026575,2]
[312215529,1705689057986,-1306.15,0.00026575,2]
[312215530,1705689057995,-500.0,0.00026575,2]
[312215531,1705689058005,-500.0,0.00026575,2]
[312215532,1705689058015,-500.0,0.00026575,2]
[312215533,1705689058026,-780.55,0.00026575,2]
[312215534,1705689058036,-759.4,0.00026575,2]
[312215535,1705689058045,-940.32,0.00026575,2]
[312215536,1705689058055,-151.0,0.00026575,7]
[312215537,1705689058065,-170.583787,0.00026575,7]
[312215538,1705689058074,-170.583787,0.00026575,7]
[312215539,1705689058084,-151.0,0.00026575,7]
[312215540,1705689058095,-880.899437,0.00026575,7]
[312215541,1705689058104,-880.899437,0.00026575,7]
[312215542,1705689058114,-1444.567049,0.00026575,7]
[312215543,1705689058125,-1444.567049,0.00026575,7]
[312215544,1705689058134,-23349.85,0.00026575,2]
[312215545,1705689058144,-1148.07443175,0.00026656,2]
[312215546,1705689058153,-1004.73709562,0.00026656,2]
[312215547,1705689058163,-150.0,0.000267,2]
[312215548,1705689058172,-163.53999278,0.00026701,2]
[312215549,1705689058182,-941.43,0.00026714,2]
[312215550,1705689058192,-167.0,0.00026741,2]
[312215551,1705689058201,-151.0,0.00026849,7]
[312215552,1705689058211,-185.230936,0.00026849,7]
[312215553,1705689058221,-185.230936,0.00026849,7]
[312215554,1705689058230,-151.0,0.00026849,7]
[312215555,1705689058240,-500.0,0.00026849,2]
[312215556,1705689058250,-500.0,0.00026849,2]
[312215557,1705689058259,-500.0,0.00026849,2]
[312215558,1705689058268,-500.0,0.00026849,2]
[312215559,1705689058282,-1141.86,0.00026849,2]
[312215560,1705689058291,-1766.46,0.00026849,2]
[312215561,1705689058302,-500.0,0.00026849,2]
[312215562,1705689058312,-500.0,0.00026849,2]
[312215563,1705689058322,-500.0,0.00026849,2]
[312215564,1705689058331,-500.0,0.00026849,2]
[312215565,1705689058342,-1424.6,0.00026849,2]
[312215566,1705689058351,-500.0,0.00026849,2]
[312215567,1705689058361,-1307.79,0.00026849,2]
[312215568,1705689058370,-500.0,0.00026849,2]
[312215569,1705689058382,-537.41,0.00026849,2]
[312215570,1705689058392,-1580.7,0.00026849,2]
[312215571,1705689058401,-1138.73,0.00026849,2]
[312215572,1705689058411,-570.9,0.00026849,2]
[312215573,1705689058421,-500.0,0.00026849,2]
[312215574,1705689058431,-153.98436614,0.00026849,2]
[312215575,1705689058439,-1401.53,0.00026849,2]
[312215576,1705689058449,-982.95,0.00026849,2]
[312215577,1705689058458,-500.0,0.00026849,2]
[312215578,1705689058468,-6746.83,0.00026849,2]
[312215579,1705689058479,-500.0,0.00026849,2]
[312215580,1705689058489,-668.27,0.00026849,2]
[312215581,1705689058499,-500.0,0.00026849,2]
[312215582,1705689058509,-500.0,0.00026849,2]
[312215583,1705689058519,-804.27,0.00026849,2]
[312215584,1705689058531,-500.0,0.00026849,2]
[312215585,1705689058541,-641.71,0.00026849,2]
[312215586,1705689058551,-1233.93,0.00026849,2]
[312215587,1705689058560,-511.16,0.00026849,2]
[312215588,1705689058570,-500.0,0.00026849,2]
[312215589,1705689058579,-500.0,0.00026849,2]
[312215590,1705689058589,-503.72,0.00026849,2]
[312215591,1705689058601,-1003.3,0.00026849,2]
[312215592,1705689058611,-398.87,0.00026849,2]
[312215593,1705689058622,-500.0,0.00026849,2]
[312215594,1705689058631,-520.73,0.00026849,2]
[312215595,1705689058641,-1852.16,0.00026849,2]
[312215596,1705689058652,-500.0,0.00026849,2]
[312215597,1705689058663,-1306.15,0.00026849,2]
[312215598,1705689058672,-500.0,0.00026849,2]
[312215599,1705689058684,-500.0,0.00026849,2]
[312215600,1705689058695,-500.0,0.00026849,2]
[312215601,1705689058705,-780.55,0.00026849,2]
[312215602,1705689058715,-759.4,0.00026849,2]
[312215603,1705689058726,-940.32,0.00026849,2]
[312215604,1705689058736,-163.53999278,0.00026895,2]
[312215605,1705689058747,-1000.0,0.000269,9]
[312215606,1705689058757,-203.0,0.0002699,9]
[312215607,1705689058768,-500.0,0.00026999,2]
[312215608,1705689058780,-500.0,0.00026999,2]
[312215609,1705689058789,-155.0,0.00027,2]
[312215610,1705689058798,-5000.0,0.00027,2]
[312215611,1705689058811,-600.0,0.00027,3]
[312215612,1705689058821,-164.48718704,0.00027041,3]
[312215613,1705689058832,-5351.18754585,0.00027041,3]
[312215614,1705689058841,-271.93995767,0.00027041,3]
[312215615,1705689058851,-4469.93005224,0.00027041,3]
[312215616,1705689058863,-1455.3555633,0.00027041,3]
[312215617,1705689058872,-1000.0,0.00027041,3]
[312215618,1705689058883,-208.74967414,0.00027041,3]
[312215619,1705689058893,-1000.0,0.00027041,3]
[312215620,1705689058903,-251.47423493,0.00027041,3]
[312215621,1705689058912,-251.47423493,0.00027041,3]
[312215622,1705689058922,-251.47423493,0.00027041,3]
[312215623,1705689058932,-1821.04342476,0.00027041,3]
[312215624,1705689058943,-1000.0,0.00027041,3]
[312215625,1705689058952,-3428.51092024,0.00027041,3]
[312215626,1705689058962,-1706.82045704,0.00027041,3]
[312215627,1705689058972,-1000.0,0.00027041,3]
[312215628,1705689059080,-5917.49085048,0.00027041,3]
[312215629,1705689059090,-2035.11490402,0.00027041,3]
[312215630,1705689059099,-163.53999278,0.0002709,2]
[312215631,1705689059108,-500.0,0.00027123,2]
[312215632,1705689059117,-500.0,0.00027123,2]
[312215633,1705689059127,-156.61,0.00027123,2]
[312215634,1705689059136,-500.0,0.00027123,2]
[312215635,1705689059146,-1141.86,0.00027123,2]
[312215636,1705689059155,-1766.46,0.00027123,2]
[312215637,1705689059166,-500.0,0.00027123,2]
[312215638,1705689059175,-500.0,0.00027123,2]
[312215639,1705689059185,-500.0,0.00027123,2]
[312215640,1705689059195,-500.0,0.00027123,2]
[312215641,1705689059204,-1424.6,0.00027123,2]
[312215642,1705689059216,-500.0,0.00027123,2]
[312215643,1705689059226,-1307.79,0.00027123,2]
[312215644,1705689059236,-537.41,0.00027123,2]
[312215645,1705689059246,-500.0,0.00027123,2]
[312215646,1705689059256,-1580.7,0.00027123,2]
[312215647,1705689059266,-1138.73,0.00027123,2]
[312215648,1705689059279,-570.9,0.00027123,2]
[312215649,1705689059289,-500.0,0.00027123,2]
[312215650,1705689059300,-1401.53,0.00027123,2]
[312215651,1705689059310,-982.95,0.00027123,2]
[312215652,1705689059320,-500.0,0.00027123,2]
[312215653,1705689059329,-6746.83,0.00027123,2]
[312215654,1705689059339,-572.50000001,0.00027123,2]
[312215655,1705689059349,-668.27,0.00027123,2]
[312215656,1705689059358,-500.0,0.00027123,2]
[312215657,1705689059369,-531.61,0.00027123,2]
[312215658,1705689059380,-804.27,0.00027123,2]
[312215659,1705689059391,-500.0,0.00027123,2]
[312215660,1705689059401,-641.71,0.00027123,2]
[312215661,1705689059410,-1233.93,0.00027123,2]
[312215662,1705689059421,-511.16,0.00027123,2]
[312215663,1705689059431,-500.0,0.00027123,2]
[312215664,1705689059441,-500.0,0.00027123,2]
[312215665,1705689059451,-503.72,0.00027123,2]
[312215666,1705689059461,-1003.3,0.00027123,2]
[312215667,1705689059471,-500.0,0.00027123,2]
[312215668,1705689059482,-520.73,0.00027123,2]
[312215669,1705689059491,-1852.16,0.00027123,2]
[312215670,1705689059500,-500.0,0.00027123,2]
[312215671,1705689059511,-1306.15,0.00027123,2]
[312215672,1705689059523,-500.0,0.00027123,2]
[312215673,1705689059532,-500.0,0.00027123,2]
[312215674,1705689059541,-500.0,0.00027123,2]
[312215675,1705689059551,-780.55,0.00027123,2]
[312215676,1705689059562,-759.4,0.00027123,2]
[312215677,1705689059572,-940.32,0.00027123,2]
[312215678,1705689059584,-203.93,0.00027197,2]
[312215679,1705689059593,-3296.87897521,0.00027199,2]
[312215680,1705689059603,-170.583787,0.000272,7]
[312215681,1705689059613,-170.583787,0.000272,7]
[312215682,1705689059622,-5959.41728143,0.000272,2]
[312215683,1705689059633,-1968.56805587,0.00027283,2]
[312215684,1705689059642,-163.53999278,0.00027285,2]
[312215685,1705689059651,-150.0,0.00027296,2]
[312215686,1705689059662,-1123.11164576,0.00027297,13]
[312215687,1705689059671,-151.9905901,0.00027297,2]
[312215688,1705689059681,-500.0,0.00027396,2]
[312215689,1705689059690,-151.0,0.00027397,7]
[312215690,1705689059703,-151.0,0.00027397,7]
[312215691,1705689059713,-151.0,0.00027397,7]
[312215692,1705689059723,-151.0,0.00027397,7]
[312215693,1705689059735,-185.230936,0.00027397,7]
[312215694,1705689059746,-185.230936,0.00027397,7]
[312215695,1705689059757,-151.0,0.00027397,7]
[312215696,1705689059766,-880.899437,0.00027397,7]
[312215697,1705689059778,-880.899437,0.00027397,7]
[312215698,1705689059791,-1444.567049,0.00027397,7]
[312215699,1705689059800,-1444.567049,0.00027397,7]
[312215700,1705689059810,-151.0,0.00027397,7]
[312215701,1705689059819,-151.0,0.00027397,7]
[312215702,1705689059829,-151.0,0.00027397,7]
[312215703,1705689059839,-151.0,0.00027397,7]
[312215704,1705689059848,-2423.75261,0.00027397,7]
[312215705,1705689059857,-2423.75261,0.00027397,7]
[312215706,1705689059867,-500.0,0.00027397,2]
[312215707,1705689059876,-500.0,0.00027397,2]
[312215708,1705689059886,-1141.86,0.00027397,2]
[312215709,1705689059895,-1766.46,0.00027397,2]
[312215710,1705689059905,-500.0,0.00027397,2]
[312215711,1705689059915,-500.0,0.00027397,2]
[312215712,1705689059924,-500.0,0.00027397,2]
[312215713,1705689059934,-155.0,0.00027397,2]
[312215714,1705689059944,-1424.6,0.00027397,2]
[312215715,1705689059954,-557.6,0.00027397,2]
[312215716,1705689059963,-1307.79,0.00027397,2]
[312215717,1705689059973,-500.0,0.00027397,2]
[312215718,1705689059982,-537.41,0.00027397,2]
[312215719,1705689059993,-1580.7,0.00027397,2]
[312215720,1705689060003,-1138.73,0.00027397,2]
[312215721,1705689060012,-570.9,0.00027397,2]
[312215722,1705689060021,-500.0,0.00027397,2]
[312215723,1705689060032,-1401.53,0.00027397,2]
[312215724,1705689060041,-982.95,0.00027397,2]
[312215725,1705689060051,-500.0,0.00027397,2]
[312215726,1705689060062,-6746.83,0.00027397,2]
[312215727,1705689060071,-668.27,0.00027397,2]
[312215728,1705689060080,-20000.0,0.00027397,7]
[312215729,1705689060092,-20000.0,0.00027397,7]
[312215730,1705689060102,-20000.0,0.00027397,7]
[312215731,1705689060111,-500.0,0.00027397,2]
[312215732,1705689060121,-20000.0,0.00027397,7]
[312215733,1705689060134,-20000.0,0.00027397,7]
[312215734,1705689060144,-20000.0,0.00027397,7]
[312215735,1705689060153,-20000.0,0.00027397,7]
[312215736,1705689060162,-253.66860817,0.00027397,7]
[312215737,1705689060179,-1245.02928856,0.00027397,7]
[312215738,1705689060196,-3825.3684156,0.00027397,7]
[312215739,1705689060207,-2044.08918936,0.00027397,7]
[312215740,1705689060219,-371.19398134,0.00027397,7]
[312215741,1705689060231,-1066.63,0.00027397,7]
[312215742,1705689060243,-6333.55981514,0.00027397,7]
[312215743,1705689060254,-867.76696989,0.00027397,7]
[312215744,1705689060270,-1518.25,0.00027397,7]
[312215745,1705689060389,-252.942,0.00024797,2]
[312215746,1705689060398,-2474.44373194,0.00027397,7]
[312215747,1705689060408,-77.37680955,0.00027397,7]
[312215748,1705689060421,-375.31267016,0.00027397,7]
[312215749,1705689060433,-301.71551016,0.00027397,7]
[312215750,1705689060446,-19245.59501013,0.00027397,7]
[312215751,1705689060455,-1995.69003268,0.00027397,7]
[312215752,1705689060466,-770.0,0.00027397,7]
[312215753,1705689060480,-409.40082625,0.00027397,7]
[312215754,1705689060498,-535.74975913,0.00023201,2]
[312215755,1705689060515,-13.37174087,0.00023201,2]
[312215756,1705689060525,-9181.16293119,0.00027397,7]
[312215757,1705689060554,-1526.6072753,0.00027397,7]
[312215758,1705689060573,-3600.0,0.00027397,7]
[312215759,1705689060585,-2517.13893458,0.00027397,7]
[312215760,1705689060596,-20000.0,0.00027397,7]
[312215761,1705689060606,-804.27,0.00027397,2]
[312215762,1705689060615,-500.0,0.00027397,2]
[312215763,1705689060624,-641.71,0.00027397,2]
[312215764,1705689060633,-1233.93,0.00027397,2]
[312215765,1705689060643,-511.16,0.00027397,2]
[312215766,1705689060653,-500.0,0.00027397,2]
[312215767,1705689060665,-500.0,0.00027397,2]
[312215768,1705689060675,-503.72,0.00027397,2]
[312215769,1705689060688,-1003.3,0.00027397,2]
[312215770,1705689060701,-500.0,0.00027397,2]
[312215771,1705689060710,-520.73,0.00027397,2]
[312215772,1705689060721,-1852.16,0.00027397,2]
[312215773,1705689060730,-500.0,0.00027397,2]
[312215774,1705689060740,-1306.15,0.00027397,2]
[312215775,1705689060750,-500.0,0.00027397,2]
[312215776,1705689060759,-500.0,0.00027397,2]
[312215777,1705689060768,-500.0,0.00027397,2]
[312215778,1705689060783,-780.55,0.00027397,2]
[312215779,1705689060794,-759.4,0.00027397,2]
[312215780,1705689060805,-940.32,0.00027397,2]
[312215781,1705689060814,-156.53,0.00027397,2]
[312215782,1705689060823,-150.92,0.00027397,2]
[312215783,1705689060832,-153.73,0.00027397,2]
[312215784,1705689060853,-157.9,0.00027397,2]
[312215785,1705689060863,-156.25,0.00027397,2]
[312215786,1705689060873,-8000.0,0.000274,2]
[312215787,1705689060884,-159.09,0.00027429,2]
[312215788,1705689060895,-163.53999278,0.0002748,2]
[312215789,1705689060906,-426.0,0.00027558,2]
[312215790,1705689060916,-235.0,0.00027558,2]
[312215791,1705689060925,-5000.0,0.00027568,2]
[312215792,1705689060935,-5000.0,0.00027568,2]
[312215793,1705689060946,-4447.2513448,0.00027568,2]
[312215794,1705689060959,-552.7486552,0.00027568,2]
[312215795,1705689060969,-5000.0,0.00027568,2]
[312215796,1705689060978,-5000.0,0.00027568,2]
[312215797,1705689060988,-406.38,0.00027644,2]
[312215798,1705689060998,-500.0,0.0002767,2]
[312215799,1705689061007,-500.0,0.00027671,2]
[312215800,1705689061017,-277.49917003,0.00027671,2]
[312215801,1705689061478,560.76781231,0.00021943,2]
[312215802,1705689063755,205.0,0.00022274,2]
[312215803,1705689093972,198.12762276,0.00022274,2]
[312215804,1705689093995,1.87237724,0.00022274,2]
[312215807,1705689177533,1361.8394463,0.00022274,2]
[312215808,1705689177555,1182.63774309,0.00022274,2]
[312215811,1705689191387,817.36225691,0.00022274,2]
[312215812,1705689191408,599.32654371,0.00022274,2]
[312215813,1705689213864,205.0,0.00022274,2]
[312215814,1705689368352,-300.0,0.00022993,2]
[312215815,1705689368375,-1700.0,0.00022993,2]
[312215816,1705689403370,-905.00019777,0.00022993,2]
[312215817,1705689403392,-543.0368942,0.00022993,2]
[312215818,1705689403412,-381.91640409,0.00022994,2]
[312215819,1705689414554,-242.54662621,0.00022992,2]
[312215820,1705689414574,-349.13869098,0.00022994,2]
[312215821,1705689414595,-1408.31468281,0.00022998,2]
[312215822,1705689420608,-2000.0,0.00022998,2]
[312215823,1705689429692,250.92099673,0.00021,2]
[312215824,1705689459142,-2000.0,0.00022998,2]
[312215825,1705689459959,-2000.0,0.00022998,2]
[312215826,1705689460662,-425.14732106,0.00022998,2]
[312215827,1705689460684,-150.0,0.00023,2]
[312215828,1705689465604,1424.85267894,0.00022997,2]
[312215829,1705689465625,2000.0,0.00022997,2]
[312215830,1705689465646,575.14732106,0.00022997,2]
[312215831,1705689583040,150.0,0.00023,2]
[312215832,1705689706797,278.87,0.00023,2]
[312215833,1705689765409,347.68,0.00021782,2]
[312215840,1705690211941,250.0,0.000219,2]
[312215845,1705690233589,-1008.11171313,0.00023013,20]
[312215847,1705690233600,-143.2422076,0.00023014,2]
[312215849,1705690233613,-106.7577924,0.00023014,2]
[312215850,1705690233623,-414.31712448,0.00023014,2]
[312215851,1705690233635,-81.68287552,0.00023014,2]
[312215852,1705690233645,-405.37255056,0.00023022,2]
[312215853,1705690233655,-2000.0,0.00023023,2]
[312215854,1705690233664,-4299.37511427,0.00023023,2]
[312215856,1705690234031,-496.10168245,0.00023023,2]
[312215857,1705690234044,-448.90252226,0.00023023,2]
[312215858,1705690234055,-658.95711509,0.00023023,2]
[312215859,1705690234067,-763.3723559,0.00023023,2]
[312215863,1705690234191,-12437.4,0.00023023,2]
[312215864,1705690234203,-401.27165539,0.00023023,2]
[312215865,1705690234221,-435.04752656,0.00023023,2]
[312215866,1705690234234,-634.28289295,0.00023023,2]
[312215867,1705690234249,-2059.60913513,0.00023023,2]
[312215868,1705690234259,-256.86,0.00023053,2]
[312215869,1705690234269,-161.35981866,0.00023075,2]
[312215870,1705690234278,-203.21708329,0.000231,2]
[312215871,1705690234287,-191.42265721,0.000231,2]
[312215872,1705690234299,-54.1787847,0.000231,2]
[312215873,1705690234308,-155.13580781,0.00023101,2]
[312215874,1705690234318,-150.0,0.00023101,2]
[312215875,1705690234328,-150.0,0.00023101,2]
[312215876,1705690234337,-300.0,0.00023101,2]
[312215877,1705690234347,-8626.88735708,0.00023102,2]
[312215878,1705690234357,-735.37,0.00023175,2]
[312215879,1705690234367,-1000.0,0.00023201,2]
[312215880,1705690234377,-200.0,0.00023509,2]
[312215881,1705690234386,-250.0,0.00023509,2]
[312215882,1705690234395,-237.77,0.00023509,2]
[312215883,1705690234404,-166.98,0.00023509,2]
[312215884,1705690234413,-170.46,0.00023509,2]
[312215885,1705690234423,-161.35981865,0.000236,2]
[312215886,1705690234432,-426.37,0.000236,2]
[312215887,1705690234442,-504.0,0.00023714,2]
[312215888,1705690234451,-155.2,0.00023744,2]
[312215889,1705690234460,-153.79,0.00023745,2]
[312215890,1705690234470,-499.99,0.00023775,2]
[312215891,1705690234484,-2605.05209127,0.00023864,2]
[312215892,1705690234494,-542.64523798,0.00023864,2]
[312215893,1705690234503,-946.75094191,0.00023864,2]
[312215894,1705690234513,-2408.48702696,0.00023864,2]
[312215895,1705690234523,-246.65556491,0.00023864,2]
[312215896,1705690234533,-242.36302687,0.00023865,2]
[312215897,1705690234542,-156.91,0.00023901,2]
[312215898,1705690234552,-153.79,0.00023935,2]
[312215899,1705690234562,-14245.1187327,0.0002399,2]
[312215900,1705690234571,-155.0,0.0002399,2]
[312215901,1705690234581,-431.59040182,0.00024,2]
[312215902,1705690234591,-201.16205573,0.00024,2]
[312215903,1705690234600,-256.86,0.00024032,2]
[312215904,1705690234610,-347.68,0.00024046,2]
[312215905,1705690234619,-161.35981865,0.00024125,2]
[312215906,1705690234628,-153.79,0.00024125,2]
[312215907,1705690234638,-160.23,0.00024258,2]
[312215908,1705690234647,-153.79,0.00024315,2]
[312215909,1705690234656,-167.0,0.00024375,2]
[312215910,1705690234666,-1366.73172406,0.000244,4]
[312215911,1705690234675,-2368.60309678,0.000244,2]
[312215912,1705690234684,-151.9905901,0.000244,2]
[312215913,1705690234695,-1050.20356058,0.000245,2]
[312215941,1705690238483,-315.73890016,0.000245,2]
[312215942,1705690238499,-1029.336,0.000245,2]
[312215943,1705690238511,-1730.92187717,0.000245,2]
[312215950,1705690240476,-1246.765,0.000245,2]
[312215951,1705690240489,-1698.8736185,0.000245,2]
[312215952,1705690240500,-487.86754651,0.000245,2]
[312215953,1705690241221,-6247.971,0.000245,2]
[312215954,1705690241298,-8841.12724332,0.000245,2]
[312215955,1705690241310,-86158.87275668,0.000245,2]
[312216029,1705690242838,-11135.29472062,0.000245,2]
[312216030,1705690242858,-151469.57187646,0.000245,2]
[312216031,1705690242867,-251.2161,0.000245,2]
[312216032,1705690242877,-153.79,0.00024505,2]
[312216033,1705690242886,-156.91,0.00024524,2]
[312216034,1705690242895,-10554.50841058,0.00024556,2]
[312216035,1705690242905,-314.24418711,0.00024556,2]
[312216036,1705690242914,-228.3602233,0.00024556,2]
[312216037,1705690242924,-22697.90784523,0.000246,2]
[312216038,1705690242933,-161.35981865,0.0002465,2]
[312216039,1705690242942,-1022.45493899,0.00024655,2]
[312216040,1705690242951,-697.79476583,0.00024655,2]
[312216041,1705690242960,-215.1525259,0.00024655,2]
[312216042,1705690242969,-500.0,0.00024657,2]
[312216043,1705690242978,-500.0,0.00024657,2]
[312216044,1705690242990,-666.09,0.00024657,2]
[312216045,1705690242999,-1030.44,0.00024657,2]
[312216046,1705690243008,-500.0,0.00024657,2]
[312216047,1705690243017,-500.0,0.00024657,2]
[312216048,1705690243027,-300.0,0.00024657,2]
[312216049,1705690243037,-200.15964,0.00024657,2]
[312216050,1705690243046,-500.0,0.00024657,2]
[312216051,1705690243055,-500.0,0.00024657,2]
[312216052,1705690243065,-4216.76,0.00024657,2]
[312216053,1705690243074,-259.18208253,0.00024657,2]
[312216054,1705690243083,-500.0,0.00024657,2]
[312216055,1705690243096,-500.0,0.00024657,2]
[312216056,1705690243106,-500.0,0.00024657,2]
[312216057,1705690243117,-500.0,0.00024657,2]
[312216058,1705690243127,-500.0,0.00024657,2]
[312216059,1705690243137,-500.0,0.00024657,5]
[312216060,1705690243147,-500.0,0.00024657,2]
[312216061,1705690243157,-500.0,0.00024657,2]
[312216062,1705690243169,-739.1,0.00024657,2]
[312216063,1705690243178,-821.16,0.00024657,2]
[312216064,1705690243190,-500.0,0.00024657,2]
[312216065,1705690243201,-500.0,0.00024657,2]
[312216066,1705690243211,-204.84,0.00024658,2]
[312216067,1705690243220,-250.0,0.00024658,2]
[312216068,1705690243230,-153.79,0.00024695,2]
[312216069,1705690243243,-153.79,0.00024885,2]
[312216070,1705690243253,-628.77984733,0.00024931,2]
[312216071,1705690243262,-666.09,0.00024931,2]
[312216072,1705690243272,-1030.44,0.00024931,2]
[312216073,1705690243281,-500.0,0.00024931,2]
[312216074,1705690243291,-500.0,0.00024931,2]
[312216075,1705690243300,-4216.76,0.00024931,2]
[312216076,1705690243309,-500.0,0.00024931,2]
[312216077,1705690243319,-500.0,0.00024931,2]
[312216078,1705690243329,-500.0,0.00024931,2]
[312216079,1705690243338,-500.0,0.00024931,2]
[312216080,1705690243347,-500.0,0.00024931,5]
[312216081,1705690243357,-362.37,0.00024931,2]
[312216082,1705690243367,-500.0,0.00024931,2]
[312216083,1705690243376,-739.1,0.00024931,2]
[312216084,1705690243386,-821.16,0.00024931,2]
[312216085,1705690243394,-500.0,0.00024931,2]
[312216086,1705690243404,-500.0,0.00024931,2]
[312216087,1705690243413,-550.0,0.00025,3]
[312216088,1705690243422,-167.40543921,0.00025,2]
[312216089,1705690243431,-303.51189486,0.00025,2]
[312216090,1705690243440,-202.05640348,0.00025,2]
[312216091,1705690243449,-1584.35924632,0.00025,2]
[312216092,1705690243458,-933.81243155,0.00025,2]
[312216093,1705690243468,-4463.79066,0.00025,2]
[312216094,1705690243477,-256.86,0.0002501,2]
[312216095,1705690243487,-153.79,0.00025075,2]
[312216096,1705690243496,-300.0,0.00025075,2]
[312216097,1705690243505,-425.0,0.00025098,2]
[312216098,1705690243515,-268.9185,0.00025105,2]
[312216099,1705690243524,-156.91,0.00025147,2]
[312216100,1705690243534,-161.35981865,0.00025175,2]
[312216101,1705690243543,-666.09,0.00025205,2]
[312216102,1705690243553,-1030.44,0.00025205,2]
[312216103,1705690243562,-500.0,0.00025205,2]
[312216104,1705690243571,-4216.76,0.00025205,2]
[312216105,1705690243581,-500.0,0.00025205,2]
[312216106,1705690243590,-500.0,0.00025205,2]
[312216107,1705690243599,-500.0,0.00025205,2]
[312216108,1705690243609,-164.14,0.00025205,5]
[312216109,1705690243618,-500.0,0.00025205,2]
[312216110,1705690243628,-739.1,0.00025205,2]
[312216111,1705690243638,-821.16,0.00025205,2]
[312216112,1705690243647,-500.0,0.00025205,2]
[312216113,1705690243656,-153.79,0.00025265,2]
[312216114,1705690243666,-500.0,0.00025378,2]
[312216116,1705690243675,-500.0,0.00025378,2]
[312216117,1705690243685,-500.0,0.00025378,7]
[312216118,1705690243694,-500.0,0.00025378,2]
[312216119,1705690243704,-500.0,0.00025378,2]
[312216120,1705690243713,-500.0,0.00025378,2]
[312216121,1705690243722,-500.0,0.00025378,2]
[312216122,1705690243731,-500.0,0.00025378,2]
[312216123,1705690243743,-500.0,0.00025378,2]
[312216124,1705690243751,-500.0,0.00025378,2]
[312216125,1705690243760,-500.0,0.00025378,2]
[312216136,1705690243966,-500.0,0.00025378,2]
[312216138,1705690243979,-500.0,0.00025378,2]
[312216140,1705690243991,-500.0,0.00025378,2]
[312216142,1705690244001,-500.0,0.00025378,2]
[312216144,1705690244011,-647.99,0.00025378,2]
[312216146,1705690244020,-500.0,0.00025378,2]
[312216148,1705690244030,-500.0,0.00025378,2]
[312216150,1705690244040,-500.0,0.00025378,2]
[312216152,1705690244049,-987.94,0.00025378,2]
[312216155,1705690244059,-711.7,0.00025378,2]
[312216156,1705690244069,-875.96,0.00025378,2]
[312216158,1705690244078,-500.0,0.00025378,2]
[312216160,1705690244088,-500.0,0.00025378,2]
[312216162,1705690244099,-500.0,0.00025378,2]
[312216164,1705690244108,-500.0,0.00025378,2]
[312216166,1705690244119,-614.35,0.00025378,2]
[312216168,1705690244128,-500.0,0.00025378,2]
[312216170,1705690244138,-500.0,0.00025378,2]
[312216172,1705690244147,-502.66,0.00025378,2]
[312216174,1705690244157,-500.0,0.00025378,2]
[312216175,1705690244166,-500.0,0.00025378,2]
[312216176,1705690244176,-500.0,0.00025378,2]
[312216177,1705690244187,-500.0,0.00025378,2]
[312216178,1705690244197,-500.0,0.00025378,2]
[312216179,1705690244206,-771.2,0.00025378,2]
[312216180,1705690244216,-500.0,0.00025378,2]
[312216181,1705690244226,-627.07,0.00025378,2]
[312216182,1705690244238,-500.0,0.00025378,2]
[312216183,1705690244249,-816.34,0.00025378,2]